bitfinex/quotes_BTCUSD_20240712
["timestamp","ask_amount","ask_price","bid_price","bid_amount"]
[1720781742924,0.19341976,57300.0,57299.0,0.33985]
[1720781743338,0.01289976,57300.0,57299.0,1.21444874]
[1720781743548,0.00583,57300.0,57299.0,1.29953929]
[1720781743804,0.00383,57300.0,57299.0,0.95049329]
[1720781743951,0.00383,57300.0,57299.0,0.89049329]
[1720781744366,0.00583,57300.0,57299.0,0.89049329]
[1720781744804,0.00583,57300.0,57299.0,0.89355682]
[1720781745132,0.00383,57300.0,57299.0,0.89355682]
[1720781745383,0.17835,57300.0,57299.0,0.58065431]
[1720781745586,0.17635,57300.0,57299.0,0.59465431]
[1720781745961,0.17735,57300.0,57299.0,0.59465431]
[1720781746157,0.17635,57300.0,57299.0,0.59465431]
[1720781746559,0.17735,57300.0,57299.0,0.59465431]
[1720781746741,0.17535,57300.0,57299.0,0.58065431]
[1720781747170,0.17735,57300.0,57299.0,0.59265431]
[1720781747604,0.17635,57300.0,57299.0,0.58065431]
[1720781747938,0.17735,57300.0,57299.0,0.59265431]
[1720781749013,0.17735,57300.0,57299.0,0.51425431]
[1720781752298,0.174504,57305.0,57304.0,0.199]
[1720781752672,0.174504,57305.0,57304.0,0.27671353]
[1720781753009,0.174504,57305.0,57304.0,0.27365]
[1720781753619,0.175504,57305.0,57304.0,0.28065]
[1720781753765,0.176504,57305.0,57304.0,0.28065]
[1720781755673,0.19477671,57305.0,57304.0,0.28065]
[1720781755872,0.19477671,57305.0,57304.0,0.36075]
[1720781756078,0.19477671,57305.0,57304.0,0.42642131]
[1720781756283,0.19477671,57305.0,57304.0,0.49302131]
[1720781757332,0.19477671,57305.0,57304.0,0.57462131]
[1720781757681,0.02027271,57305.0,57304.0,0.57462131]
[1720781760586,0.02027271,57305.0,57304.0,0.49302131]
[1720781761222,0.02714386,57305.0,57304.0,0.49302131]
[1720781762385,0.02714386,57305.0,57304.0,0.57462131]
[1720781762593,0.02027271,57305.0,57304.0,0.90586131]
[1720781762794,0.02027271,57305.0,57304.0,1.60695484]
[1720781763206,0.02027271,57305.0,57304.0,1.60389131]
[1720781763841,0.02027271,57305.0,57304.0,2.12314371]
[1720781764046,0.002,57305.0,57304.0,2.12324371]
[1720781764457,0.002,57305.0,57304.0,2.32324371]
[1720781765280,0.002,57305.0,57304.0,2.67225871]
[1720781765694,0.17849217,57333.0,57327.0,0.33932131]
[1720781765909,0.002,57333.0,57327.0,0.33932131]
[1720781766117,0.02655271,57328.0,57327.0,0.33932131]
[1720781766826,0.03343599,57328.0,57325.0,0.199]
[1720781767376,0.04543599,57328.0,57322.0,0.096733]
[1720781767576,0.002,57327.0,57319.0,0.26367131]
[1720781767821,0.0816,57323.0,57314.0,0.770233]
[1720781768058,0.002,57321.0,57314.0,0.199]
[1720781768539,0.002,57320.0,57312.0,0.199]
[1720781768757,0.002,57314.0,57306.0,0.199]
[1720781768962,0.0836,57310.0,57303.0,0.199]
[1720781769176,0.0836,57310.0,57302.0,0.199]
[1720781769391,0.0836,57310.0,57302.0,0.26267131]
[1720781769597,0.0836,57310.0,57302.0,0.199]
[1720781769598,0.002,57308.0,57302.0,0.199]
[1720781769830,0.0836,57310.0,57301.0,0.199]
[1720781770039,0.0836,57310.0,57295.0,0.096733]
[1720781770040,0.0836,57304.0,57295.0,0.096733]
[1720781770254,0.002,57303.0,57302.0,0.51068611]
[1720781770452,0.17641466,57312.0,57304.0,0.26267131]
[1720781770659,0.17641466,57312.0,57308.0,0.199]
[1720781770863,0.17968166,57314.0,57307.0,0.199]
[1720781771071,0.17641466,57314.0,57311.0,0.199]
[1720781771274,0.002,57316.0,57311.0,0.199]
[1720781771275,0.17841466,57316.0,57311.0,0.199]
[1720781771480,0.17641466,57315.0,57314.0,0.001]
[1720781771686,0.17841466,57316.0,57311.0,0.199]
[1720781771864,0.001,57312.0,57311.0,0.199]
[1720781772109,0.005,57312.0,57311.0,0.199]
[1720781772507,0.004,57312.0,57311.0,0.199]
[1720781773874,0.004,57315.0,57308.0,0.199]
[1720781774251,0.001,57312.0,57308.0,0.199]
[1720781774456,0.001,57312.0,57311.0,0.199]
[1720781775098,0.00083,57314.0,57311.0,0.199]
[1720781776113,0.00083,57314.0,57308.0,0.199]
[1720781776326,0.00083,57314.0,57307.0,0.07465]
[1720781776327,0.00083,57314.0,57307.0,0.199]
[1720781777341,0.00183,57314.0,57307.0,0.199]
[1720781777480,0.00183,57314.0,57308.0,0.06367131]
[1720781777683,0.00083,57314.0,57312.0,0.198]
[1720781777879,0.00083,57314.0,57313.0,0.27265]
[1720781778182,0.00183,57314.0,57313.0,0.60838644]
[1720781778384,0.00383,57314.0,57313.0,0.57475431]
[1720781778591,0.00083,57314.0,57313.0,0.57475431]
[1720781780551,0.00083,57314.0,57313.0,0.57775431]
[1720781781091,0.00083,57314.0,57313.0,0.099733]
[1720781782783,0.00083,57314.0,57313.0,0.372383]
[1720781783193,0.00083,57314.0,57313.0,0.369383]
[1720781783398,0.00083,57314.0,57313.0,0.43305431]
[1720781783609,0.00083,57314.0,57313.0,0.43405431]
[1720781783834,0.00083,57314.0,57313.0,0.81243431]
[1720781784040,0.00083,57314.0,57313.0,1.16039431]
[1720781784455,0.00083,57314.0,57313.0,1.16239431]
[1720781785068,0.00083,57314.0,57313.0,1.16039431]
[1720781785244,0.00083,57314.0,57313.0,2.03255171]
[1720781786676,0.00083,57314.0,57313.0,2.02855171]
[1720781786883,0.00183,57314.0,57313.0,2.03755171]
[1720781787473,0.00083,57314.0,57313.0,2.02855171]
[1720781787676,0.00183,57314.0,57313.0,2.03855171]
[1720781787876,0.00283,57314.0,57313.0,2.03855171]
[1720781788169,0.00183,57314.0,57313.0,0.58695431]
[1720781788580,0.00283,57314.0,57313.0,0.58695431]
[1720781790982,0.00283,57314.0,57313.0,1.17039431]
[1720781791598,0.00283,57314.0,57313.0,0.82143431]
[1720781791799,0.00283,57314.0,57313.0,0.95887504]
[1720781792129,0.00283,57314.0,57313.0,0.82143431]
[1720781793361,0.00283,57314.0,57313.0,0.58695431]
[1720781793566,0.00283,57314.0,57313.0,0.64695431]
[1720781793819,0.00283,57314.0,57313.0,0.82143431]
[1720781794120,0.00283,57314.0,57313.0,1.17039431]
[1720781795992,0.00283,57314.0,57313.0,0.82143431]
[1720781796475,0.00283,57314.0,57313.0,0.58695431]
[1720781796764,0.00283,57314.0,57313.0,0.82143431]
[1720781797715,0.00283,57314.0,57313.0,1.32233164]
[1720781797919,0.00283,57314.0,57313.0,1.67129164]
[1720781798631,0.00283,57314.0,57313.0,2.02025164]
[1720781799077,0.00283,57314.0,57313.0,1.51935431]
[1720781800330,0.00283,57314.0,57313.0,1.17039431]
[1720781800535,0.00283,57314.0,57313.0,0.82143431]
[1720781806448,0.00283,57314.0,57313.0,0.58695431]
[1720781806662,0.00283,57314.0,57313.0,0.44305431]
[1720781807690,0.00283,57314.0,57313.0,0.43305431]
[1720781807691,0.00183,57314.0,57313.0,0.43305431]
[1720781807926,0.00183,57314.0,57313.0,0.44205431]
[1720781808168,0.00283,57314.0,57313.0,0.44205431]
[1720781808390,0.00183,57314.0,57313.0,0.44205431]
[1720781808859,0.00283,57314.0,57313.0,0.44205431]
[1720781809308,0.00183,57314.0,57313.0,0.43305431]
[1720781809576,0.00283,57314.0,57313.0,0.44105431]
[1720781818671,0.00834492,57314.0,57313.0,0.377383]
[1720781818998,0.00283,57314.0,57313.0,0.377383]
[1720781819423,0.00283,57314.0,57313.0,0.008]
[1720781820284,0.00283,57314.0,57313.0,0.206]
[1720781820483,0.00283,57314.0,57313.0,0.28065]
[1720781821315,0.00283,57314.0,57313.0,0.42282131]
[1720781822500,0.00283,57314.0,57313.0,0.48842131]
[1720781824753,0.00283,57314.0,57313.0,0.57002131]
[1720781825587,0.00283,57314.0,57313.0,0.97400104]
[1720781826000,0.00283,57314.0,57313.0,0.73952104]
[1720781826204,0.00283,57314.0,57313.0,0.66675431]
[1720781828068,0.00283,57314.0,57313.0,0.302733]
[1720781828268,0.00283,57314.0,57313.0,0.44105431]
[1720781833138,0.02019861,57329.0,57318.0,0.096733]
[1720781833342,0.02019861,57329.0,57322.0,0.00166353]
[1720781833974,0.002,57328.0,57322.0,0.00166353]
[1720781834413,0.01819861,57329.0,57322.0,0.00166353]
[1720781834414,0.002,57327.0,57322.0,0.00166353]
[1720781835071,0.002,57324.0,57321.0,0.00166353]
[1720781835686,0.002,57323.0,57318.0,0.096733]
[1720781836366,0.002,57323.0,57319.0,0.00166353]
[1720781836602,0.0836,57325.0,57319.0,0.00166353]
[1720781836836,0.0816,57325.0,57319.0,0.00166353]
[1720781837289,0.003,57327.0,57318.0,0.09839653]
[1720781837492,0.0014,57326.0,57318.0,0.09839653]
[1720781837905,0.0014,57326.0,57319.0,0.198]
[1720781838124,0.002,57327.0,57320.0,0.00166353]
[1720781838339,0.0014,57326.0,57320.0,0.00166353]
[1720781838545,0.0014,57326.0,57319.0,0.00166353]
[1720781838778,0.0014,57326.0,57321.0,0.002]
[1720781838981,0.0034,57326.0,57321.0,0.002]
[1720781839180,0.0014,57326.0,57319.0,0.00166353]
[1720781840212,0.002,57327.0,57321.0,0.00166353]
[1720781840392,0.001,57326.0,57321.0,0.00166353]
[1720781840969,0.001,57326.0,57321.0,0.19966353]
[1720781841196,0.003,57326.0,57321.0,0.19966353]
[1720781841758,0.003,57326.0,57325.0,0.43305431]
[1720781841759,0.002,57326.0,57325.0,0.43305431]
[1720781841977,0.002,57326.0,57325.0,0.65565431]
[1720781842216,0.003,57326.0,57325.0,0.65565431]
[1720781842633,0.002,57326.0,57325.0,0.65565431]
[1720781843040,0.001,57326.0,57325.0,0.51465431]
[1720781843606,0.00644632,57329.0,57328.0,0.33632131]
[1720781843808,0.00644632,57329.0,57328.0,0.41958484]
[1720781844225,0.00644632,57329.0,57328.0,0.56082131]
[1720781844462,0.17683785,57337.0,57332.0,0.06]
[1720781844463,0.17669935,57337.0,57332.0,0.06]
[1720781844699,0.17669935,57337.0,57333.0,0.197]
[1720781844975,0.17669935,57337.0,57333.0,0.196]
[1720781845204,0.17669935,57338.0,57334.0,0.00306353]
[1720781845609,0.17669935,57338.0,57334.0,0.00106353]
[1720781846332,0.001,57337.0,57334.0,0.00106353]
[1720781846743,0.001,57337.0,57335.0,0.196]
[1720781846991,0.001,57337.0,57336.0,0.25976353]
[1720781847476,0.001,57337.0,57336.0,0.06376353]
[1720781847752,0.17658571,57343.0,57336.0,0.06376353]
[1720781847969,0.002,57338.0,57336.0,0.06376353]
[1720781848171,0.17658571,57343.0,57336.0,0.06376353]
[1720781848549,0.001,57337.0,57336.0,0.06376353]
[1720781848750,0.001,57337.0,57336.0,0.34016353]
[1720781848951,0.17658571,57343.0,57336.0,0.1431]
[1720781849130,0.002,57338.0,57337.0,0.00106353]
[1720781849557,0.007,57343.0,57337.0,0.00106353]
[1720781850207,0.19635842,57344.0,57337.0,0.00106353]
[1720781850406,0.001,57338.0,57337.0,0.00106353]
[1720781850813,0.001,57338.0,57337.0,6.353e-05]
[1720781851790,0.0045,57343.0,57337.0,6.353e-05]
[1720781852009,0.002,57338.0,57337.0,6.353e-05]
[1720781852219,0.002,57338.0,57337.0,0.00106353]
[1720781852828,0.002,57338.0,57337.0,6.353e-05]
[1720781853295,0.003,57338.0,57337.0,6.353e-05]
[1720781853688,0.003,57338.0,57337.0,0.00016353]
[1720781856329,0.0045,57338.0,57337.0,0.00016353]
[1720781856945,0.003,57338.0,57337.0,0.00016353]
[1720781857164,0.0045,57338.0,57337.0,0.00016353]
[1720781858222,0.0045,57338.0,57333.0,0.096733]
[1720781858448,0.0015,57337.0,57333.0,0.096733]
[1720781858872,0.0045,57338.0,57333.0,0.096733]
[1720781859079,0.0035,57338.0,57333.0,0.096733]
[1720781859495,0.01134691,57338.0,57337.0,0.0001]
[1720781860348,0.00934691,57338.0,57337.0,0.0001]
[1720781861195,0.00834691,57338.0,57337.0,0.0001]
[1720781861410,0.00934691,57338.0,57337.0,0.0001]
[1720781861616,0.01034691,57338.0,57337.0,0.0001]
[1720781862268,0.0015,57331.0,57328.0,0.1456]
[1720781862614,0.0015,57331.0,57327.0,0.096733]
[1720781862817,0.0015,57332.0,57329.0,0.096733]
[1720781863022,0.0015,57331.0,57329.0,0.096733]
[1720781863644,0.0015,57331.0,57327.0,0.096733]
[1720781864070,0.0025,57331.0,57327.0,0.096733]
[1720781864252,0.0015,57331.0,57327.0,0.096733]
[1720781864388,0.0014,57331.0,57327.0,0.096733]
[1720781864597,0.0024,57331.0,57327.0,0.096733]
[1720781864820,0.0014,57331.0,57327.0,0.096733]
[1720781865072,0.0024,57331.0,57328.0,0.006]
[1720781865273,0.002,57331.0,57328.0,0.006]
[1720781865577,0.001,57331.0,57329.0,0.096733]
[1720781865926,0.002,57331.0,57329.0,0.096733]
[1720781866082,0.002,57331.0,57327.0,0.202]
[1720781866294,0.002,57331.0,57327.0,0.006]
[1720781866492,0.001,57331.0,57326.0,0.196]
[1720781866696,0.001,57331.0,57329.0,0.004]
[1720781866906,0.0024,57331.0,57329.0,0.004]
[1720781867114,0.0014,57331.0,57329.0,0.004]
[1720781867326,0.0014,57330.0,57329.0,0.004]
[1720781867534,0.0024,57331.0,57329.0,0.004]
[1720781867742,0.0014,57331.0,57329.0,0.004]
[1720781868122,0.0024,57331.0,57329.0,0.004]
[1720781868353,0.001,57331.0,57329.0,0.004]
[1720781868558,0.0014,57331.0,57325.0,0.242333]
[1720781869013,0.0014,57331.0,57327.0,0.0001]
[1720781869788,0.0014,57331.0,57327.0,0.0031]
[1720781870592,0.0014,57331.0,57327.0,0.0001]
[1720781870832,0.01827271,57333.0,57327.0,0.0001]
[1720781871086,0.01827271,57333.0,57327.0,0.1961]
[1720781871323,0.01827271,57333.0,57328.0,0.196]
[1720781871998,0.01827271,57333.0,57327.0,0.1981]
[1720781872426,0.01827271,57333.0,57328.0,0.196]
[1720781872722,0.01927271,57333.0,57328.0,0.196]
[1720781872837,0.01927271,57333.0,57329.0,0.1444]
[1720781873066,0.01827271,57333.0,57329.0,0.1444]
[1720781873512,0.01927271,57333.0,57329.0,0.1444]
[1720781874238,0.02027271,57333.0,57329.0,0.1444]
[1720781874463,0.01927271,57333.0,57329.0,0.1444]
[1720781874697,0.00083,57331.0,57329.0,0.1444]
[1720781875845,0.00083,57331.0,57329.0,0.3404]
[1720781876072,0.00083,57331.0,57330.0,0.196]
[1720781876551,0.00083,57331.0,57329.0,0.1464]
[1720781878008,0.00083,57331.0,57329.0,0.3424]
[1720781878230,0.00083,57331.0,57329.0,0.3404]
[1720781878477,0.00083,57331.0,57330.0,0.002]
[1720781878709,0.00083,57331.0,57330.0,0.198]
[1720781878937,0.00083,57331.0,57329.0,0.1444]
[1720781879356,0.00083,57331.0,57329.0,0.1464]
[1720781879788,0.00083,57331.0,57329.0,0.1444]
[1720781880206,0.00083,57331.0,57330.0,0.002]
[1720781881700,0.00083,57331.0,57329.0,0.1444]
[1720781881844,0.00083,57331.0,57329.0,0.1464]
[1720781882281,0.00083,57331.0,57330.0,0.196]
[1720781882560,0.00083,57331.0,57330.0,0.27125]
[1720781883365,0.00083,57331.0,57330.0,0.27325]
[1720781884775,0.00083,57331.0,57330.0,0.26167131]
[1720781884982,0.00083,57331.0,57330.0,0.33692131]
[1720781887595,0.00083,57331.0,57330.0,0.06567131]
[1720781889116,0.00083,57331.0,57330.0,0.26167131]
[1720781890022,0.00083,57331.0,57330.0,0.42203566]
[1720781890514,0.08466353,57345.0,57330.0,0.42203566]
[1720781890515,0.72858464,57347.0,57333.0,0.196]
[1720781890747,0.0816,57344.0,57335.0,0.0665]
[1720781891165,0.0816,57344.0,57336.0,0.00306353]
[1720781891375,0.0816,57344.0,57335.0,0.0665]
[1720781892000,0.0816,57341.0,57335.0,0.0665]
[1720781892415,0.0816,57341.0,57336.0,0.00306353]
[1720781893082,0.0816,57338.0,57335.0,0.0665]
[1720781893697,0.0816,57338.0,57331.0,0.0665]
[1720781895142,0.0896,57338.0,57331.0,0.0665]
[1720781895949,0.015,57338.0,57331.0,0.0665]
[1720781896464,0.015,57338.0,57332.0,0.19906353]
[1720781896872,0.015,57338.0,57333.0,0.0756]
[1720781897232,0.023,57338.0,57334.0,0.00306353]
[1720781897638,0.007,57338.0,57334.0,0.00306353]
[1720781897870,0.015,57338.0,57334.0,0.00306353]
[1720781898284,0.007,57338.0,57334.0,0.00306353]
[1720781898489,0.007,57338.0,57335.0,0.0619]
[1720781898700,0.008,57338.0,57336.0,0.00306353]
[1720781899109,0.015,57338.0,57336.0,0.00306353]
[1720781899539,0.008,57338.0,57336.0,0.00306353]
[1720781899961,0.015,57338.0,57336.0,0.00306353]
[1720781901072,0.007,57338.0,57336.0,0.00306353]
[1720781901324,0.015,57338.0,57335.0,0.0619]
[1720781901559,0.007,57338.0,57336.0,0.00306353]
[1720781901777,0.01407106,57338.0,57336.0,0.00306353]
[1720781901993,0.015,57338.0,57336.0,0.00306353]
[1720781902210,0.007,57338.0,57336.0,0.00306353]
[1720781902426,0.0816,57343.0,57336.0,0.00306353]
[1720781902666,0.007,57338.0,57336.0,0.00306353]
[1720781903312,0.0816,57343.0,57336.0,0.00306353]
[1720781903521,0.007,57338.0,57336.0,0.00306353]
[1720781903731,0.015,57338.0,57335.0,0.0619]
[1720781903966,5.741e-05,57336.0,57335.0,0.0619]
[1720781905452,0.00505741,57336.0,57335.0,0.0619]
[1720781905677,0.09742771,57345.0,57336.0,0.01494259]
[1720781905889,0.0816,57341.0,57337.0,0.00306353]
[1720781906093,0.0816,57341.0,57336.0,0.01494259]
[1720781906428,0.0816,57341.0,57336.0,0.01300612]
[1720781906857,0.0816,57337.0,57336.0,0.01300612]
[1720781908345,0.0876,57337.0,57336.0,0.01300612]
[1720781908788,0.0876,57337.0,57336.0,0.01400612]
[1720781909219,0.0916,57337.0,57336.0,0.01300612]
[1720781909833,0.0876,57337.0,57336.0,0.01300612]
[1720781910898,0.0916,57337.0,57336.0,0.01300612]
[1720781911325,0.0916,57337.0,57333.0,0.000913]
[1720781911534,0.0816,57334.0,57333.0,0.000913]
[1720781913461,0.0836,57334.0,57333.0,0.000913]
[1720781915465,0.002,57334.0,57333.0,0.000913]
[1720781924774,0.50235744,57353.0,57333.0,0.000913]
[1720781925039,0.004,57344.0,57334.0,0.00306353]
[1720781925276,0.0816,57335.0,57334.0,0.00306353]
[1720781925529,0.0816,57335.0,57333.0,0.000913]
[1720781925767,0.0816,57335.0,57334.0,0.00306353]
[1720781927029,0.0846,57335.0,57333.0,0.000913]
[1720781927276,0.0816,57335.0,57333.0,0.000913]
[1720781927524,0.0846,57335.0,57333.0,0.000913]
[1720781927769,0.0846,57335.0,57333.0,0.001913]
[1720781928296,0.0846,57335.0,57333.0,0.000913]
[1720781928560,0.0856,57335.0,57333.0,0.000913]
[1720781929345,0.0826,57335.0,57333.0,0.000913]
[1720781929610,0.0856,57335.0,57333.0,0.000913]
[1720781932543,0.0856,57335.0,57334.0,0.22631435]
[1720781932544,0.004,57335.0,57334.0,0.22631435]
[1720781932787,0.004,57335.0,57334.0,0.51385]
[1720781933528,0.003,57335.0,57334.0,0.4372]
[1720781934019,0.0816,57344.0,57340.0,0.0643]
[1720781934256,0.0816,57344.0,57341.0,0.00306353]
[1720781934722,0.0816,57344.0,57342.0,0.0769]
[1720781935150,0.0816,57344.0,57342.0,0.0759]
[1720781935589,0.08907131,57344.0,57342.0,0.0759]
[1720781936095,0.09507131,57344.0,57342.0,0.04315927]
[1720781936311,0.08907131,57344.0,57333.0,0.000913]
[1720781936524,0.0816,57334.0,57333.0,0.000913]
[1720781937148,0.0816,57337.0,57333.0,0.000913]
[1720781937794,0.0816,57337.0,57333.0,0.001913]
[1720781937969,0.01827271,57336.0,57333.0,0.000913]
[1720781938392,0.0816,57334.0,57333.0,0.002913]
[1720781938634,0.0816,57334.0,57333.0,0.001913]
[1720781938841,0.01827271,57336.0,57333.0,0.000913]
[1720781939471,0.01827271,57336.0,57333.0,0.001913]
[1720781939877,0.01827271,57336.0,57333.0,0.000913]
[1720781940704,0.001,57334.0,57333.0,0.000913]
[1720781940912,0.01827271,57336.0,57333.0,0.000913]
[1720781941363,0.02227271,57336.0,57333.0,0.000913]
[1720781942644,0.04222998,57336.0,57333.0,0.000913]
[1720781944568,0.02227271,57336.0,57333.0,0.000913]
[1720781952966,0.02227271,57336.0,57333.0,0.00395614]
[1720781953172,0.02227271,57336.0,57333.0,0.000913]
[1720781953385,0.02227271,57336.0,57333.0,0.00397653]
[1720781953596,0.02227271,57336.0,57333.0,0.000913]
[1720781954840,0.02227271,57336.0,57333.0,0.00397653]
[1720781955861,0.02227271,57336.0,57333.0,0.000913]
[1720781957095,0.02227271,57336.0,57333.0,0.00260113]
[1720781957299,0.02227271,57336.0,57333.0,0.000913]
[1720781958934,0.02227271,57336.0,57333.0,0.00300235]
[1720781959660,0.02227271,57336.0,57334.0,0.0799]
[1720781959844,0.02227271,57336.0,57335.0,0.06616353]
[1720781960511,0.01927271,57336.0,57335.0,0.0631]
[1720781960926,0.02227271,57336.0,57335.0,0.0631]
[1720781961348,0.01927271,57336.0,57335.0,0.0631]
[1720781961586,0.02327271,57336.0,57335.0,0.0631]
[1720781961798,0.02227271,57336.0,57335.0,0.0631]
[1720781962214,0.02327271,57336.0,57335.0,0.0631]
[1720781962861,0.02327271,57336.0,57335.0,0.1444]
[1720781963077,0.02327271,57336.0,57335.0,0.3404]
[1720781963989,0.01927271,57336.0,57335.0,0.3404]
[1720781964701,0.01827271,57336.0,57335.0,0.41705]
[1720781965181,0.01827271,57336.0,57335.0,0.41805]
[1720781965648,0.01827271,57336.0,57335.0,0.41705]
[1720781965871,0.01927271,57336.0,57335.0,0.61805]
[1720781966123,0.01927271,57336.0,57335.0,0.6798463]
[1720781966822,0.01927271,57336.0,57335.0,0.61805]
[1720781971656,0.01927271,57336.0,57335.0,0.792463]
[1720781971853,0.01927271,57336.0,57335.0,0.61805]
[1720781972060,0.01927271,57336.0,57335.0,0.62024124]
[1720781972263,0.01827271,57336.0,57335.0,0.61924124]
[1720781972646,0.01927271,57336.0,57335.0,0.62024124]
[1720781973054,0.02027271,57336.0,57335.0,0.62124124]
[1720781973249,0.01927271,57336.0,57335.0,0.62024124]
[1720781973450,0.01927271,57336.0,57335.0,0.61805]
[1720781973614,0.02027271,57336.0,57335.0,0.61905]
[1720781973816,0.01927271,57336.0,57335.0,0.61805]
[1720781974029,0.01927271,57336.0,57335.0,0.3454]
[1720781974236,0.02027271,57336.0,57335.0,0.3514]
[1720781974447,0.02027271,57336.0,57335.0,0.5474]
[1720781974655,0.02027271,57336.0,57335.0,0.3514]
[1720781974859,0.01927271,57336.0,57335.0,0.3454]
[1720781975057,0.01927271,57336.0,57335.0,0.61805]
[1720781975267,0.02027271,57336.0,57335.0,0.62805]
[1720781975889,0.01927271,57336.0,57335.0,0.62705]
[1720781976103,0.02027271,57336.0,57335.0,0.62805]
[1720781978291,0.02027271,57336.0,57335.0,0.3554]
[1720781980584,0.02027271,57336.0,57335.0,0.2554]
[1720781980788,0.02027271,57336.0,57335.0,0.1554]
[1720781981930,0.02027271,57336.0,57335.0,0.2554]
[1720781982353,0.02027271,57336.0,57335.0,0.111]
[1720781983821,0.02027271,57336.0,57335.0,0.011]
[1720781984049,0.02027271,57336.0,57335.0,0.111]
[1720781985313,0.02027271,57336.0,57335.0,0.011]
[1720781989035,0.02027271,57336.0,57335.0,0.1561]
[1720781989996,0.89232271,57336.0,57335.0,0.1561]
[1720781990270,1.22087,57336.0,57335.0,0.1561]
[1720781990732,1.58796271,57336.0,57335.0,0.1561]
[1720782001998,1.56969,57336.0,57335.0,0.1561]
[1720782002279,1.56969,57336.0,57335.0,0.1461]
[1720782002479,1.56969,57336.0,57333.0,0.000913]
[1720782002480,1.39528,57336.0,57333.0,0.000913]
[1720782002687,0.872082,57334.0,57333.0,0.000913]
[1720782002834,1.220915,57334.0,57333.0,0.000913]
[1720782003031,1.569748,57334.0,57333.0,0.000913]
[1720782004087,1.570748,57334.0,57333.0,0.002913]
[1720782004937,1.920581,57334.0,57333.0,0.006913]
[1720782005546,1.919581,57334.0,57333.0,0.002913]
[1720782005753,1.918581,57334.0,57333.0,0.000913]
[1720782005950,1.919581,57334.0,57333.0,0.004913]
[1720782006181,1.919581,57334.0,57333.0,0.005913]
[1720782007322,1.918581,57334.0,57333.0,0.001913]
[1720782007776,1.919581,57334.0,57333.0,0.006913]
[1720782009640,1.93785371,57334.0,57333.0,0.006913]
[1720782011162,1.94562688,57334.0,57333.0,0.006913]
[1720782013593,0.872142,57330.0,57329.0,0.1367]
[1720782013595,1.220999,57330.0,57329.0,0.1367]
[1720782013801,1.569856,57330.0,57329.0,0.1367]
[1720782014912,1.571856,57330.0,57329.0,0.1437]
[1720782024195,1.571856,57330.0,57329.0,0.3397]
[1720782024833,1.571856,57330.0,57329.0,0.1437]
[1720782025247,1.222999,57330.0,57329.0,0.41635]
[1720782025451,0.525285,57330.0,57329.0,0.7596863]
[1720782025700,0.525285,57330.0,57329.0,0.90480065]
[1720782025701,0.002,57330.0,57329.0,0.90480065]
[1720782025922,0.002,57330.0,57329.0,1.07923165]
[1720782026127,0.002,57330.0,57329.0,0.90480065]
[1720782026332,0.002,57330.0,57329.0,0.90786418]
[1720782026521,0.001,57330.0,57329.0,0.90286418]
[1720782026730,0.01827271,57334.0,57333.0,0.61255]
[1720782026936,0.01827271,57334.0,57333.0,0.69215]
[1720782027158,0.54152171,57334.0,57333.0,0.69215]
[1720782027614,0.89035471,57334.0,57333.0,0.6175]
[1720782027822,1.23918771,57334.0,57333.0,0.3389]
[1720782028026,1.23918771,57334.0,57333.0,0.1399]
[1720782028227,1.24018771,57334.0,57333.0,0.0809]
[1720782028639,1.24218771,57334.0,57333.0,0.0809]
[1720782029045,1.37711297,57334.0,57333.0,0.001]
[1720782029335,1.54952897,57334.0,57333.0,0.001]
[1720782029567,1.55152897,57334.0,57333.0,0.001]
[1720782029969,1.220999,57330.0,57329.0,0.1797]
[1720782030428,1.14307541,57330.0,57329.0,0.1797]
[1720782031464,1.14407541,57330.0,57329.0,0.0867]
[1720782032505,1.16334812,57330.0,57329.0,0.0957]
[1720782037886,1.16334812,57330.0,57329.0,0.096613]
[1720782038713,1.51220512,57330.0,57329.0,0.096613]
[1720782047063,1.51220512,57330.0,57329.0,0.292613]
[1720782047625,1.24127171,57330.0,57329.0,0.431063]
[1720782047868,1.222999,57330.0,57329.0,0.431063]
[1720782048748,0.874142,57330.0,57329.0,0.7747706]
[1720782048952,0.874142,57330.0,57329.0,0.8347706]
[1720782049371,0.176428,57330.0,57329.0,0.8347706]
[1720782049577,0.002,57330.0,57329.0,0.8347706]
[1720782049988,0.174423,57332.0,57331.0,0.57655]
[1720782050188,0.174423,57332.0,57331.0,0.67555]
[1720782050338,0.174423,57332.0,57331.0,0.67455]
[1720782050743,0.524092,57333.0,57332.0,0.117]
[1720782050946,0.524092,57333.0,57332.0,0.73678565]
[1720782051224,0.524092,57333.0,57332.0,0.83278565]
[1720782051477,0.175251,57333.0,57332.0,0.83278565]
[1720782052331,0.00083,57333.0,57332.0,0.83278565]
[1720782052826,0.175249,57333.0,57332.0,0.77278565]
[1720782053007,0.175249,57333.0,57332.0,0.70515]
[1720782053218,0.524088,57333.0,57332.0,0.70515]
[1720782053829,0.524088,57333.0,57332.0,0.70415]
[1720782054519,0.524088,57333.0,57332.0,0.71315]
[1720782057487,0.524088,57333.0,57332.0,0.63155]
[1720782067692,0.524088,57333.0,57332.0,0.65039201]
[1720782068130,0.524088,57333.0,57332.0,0.63155]
[1720782068536,0.524088,57333.0,57332.0,0.71315]
[1720782069567,0.175249,57333.0,57332.0,0.71315]
[1720782070020,0.00083,57333.0,57332.0,0.71315]
[1720782070424,0.00083,57333.0,57332.0,0.77315]
[1720782071603,0.00083,57333.0,57332.0,0.774063]
[1720782072779,0.00083,57333.0,57332.0,1.4271567]
[1720782072983,0.00083,57333.0,57332.0,1.0783117]
[1720782073407,0.00083,57333.0,57332.0,1.7760017]
[1720782074212,0.00083,57333.0,57332.0,1.7060017]
[1720782074417,0.00083,57333.0,57332.0,1.6970017]
[1720782074549,0.00283,57333.0,57332.0,1.7250017]